fUSD/lending_fUSD_20250616
["ID","MTS","AMOUNT","RATE_DAILY","PERIOD"]
[366110467,1750068646424,-1001.29,0.00016438,2]
[366110469,1750068646434,-490.0,0.00016438,2]
[366110471,1750068646443,-490.0,0.00016438,2]
[366110473,1750068646453,-490.0,0.00016438,2]
[366110476,1750068646464,-1036.68,0.00016438,2]
[366110478,1750068646480,-3305.87,0.00016438,2]
[366110481,1750068646490,-490.0,0.00016438,2]
[366110483,1750068646501,-6643.72,0.00016438,2]
[366110485,1750068646511,-1703.38,0.00016438,2]
[366110487,1750068646522,-677.8,0.00016438,2]
[366110489,1750068646532,-490.0,0.00016438,2]
[366110491,1750068646542,-1924.82,0.00016438,2]
[366110493,1750068646552,-490.0,0.00016438,2]
[366110495,1750068646563,-1215.3,0.00016438,2]
[366110524,1750068646836,-490.0,0.00016438,2]
[366110526,1750068646847,-880.35,0.00016438,2]
[366110528,1750068646857,-151.0,0.00016438,2]
[366110531,1750068646867,-490.0,0.00016438,2]
[366110533,1750068646877,-490.0,0.00016438,2]
[366110535,1750068646887,-490.0,0.00016438,2]
[366110537,1750068646897,-490.0,0.00016438,2]
[366110539,1750068646908,-661.32,0.00016438,2]
[366110541,1750068646919,-2097.23,0.00016438,2]
[366110543,1750068646928,-21131.57,0.00016438,2]
[366110545,1750068646938,-151.0,0.00016438,2]
[366110547,1750068646948,-1338.81,0.00016438,2]
[366110549,1750068646958,-490.0,0.00016438,2]
[366110551,1750068646968,-151.0,0.00016438,2]
[366110553,1750068646978,-804.365865,0.00016438,2]
[366110555,1750068646987,-2693.73,0.00016438,2]
[366110557,1750068646998,-1196.06,0.00016438,2]
[366110559,1750068647007,-490.0,0.00016438,2]
[366110561,1750068647018,-1276.49,0.00016438,2]
[366110563,1750068647029,-804.365865,0.00016438,2]
[366110565,1750068647040,-2079.3,0.00016438,2]
[366110567,1750068647051,-736.5,0.00016438,2]
[366110570,1750068647061,-598.35,0.00016438,2]
[366110572,1750068647071,-490.0,0.00016438,2]
[366110574,1750068647082,-490.0,0.00016438,2]
[366110576,1750068647091,-151.0,0.00016438,2]
[366110578,1750068647101,-1679.78,0.00016438,2]
[366110580,1750068647112,-623.29,0.00016438,2]
[366110582,1750068647123,-1541.66,0.00016438,2]
[366110584,1750068647133,-1038.03,0.00016438,2]
[366110586,1750068647143,-3175.0,0.00016438,2]
[366110588,1750068647153,-1091.06,0.00016438,2]
[366110590,1750068647163,-3469.35,0.00016438,2]
[366110592,1750068647173,-899.55,0.00016438,2]
[366110594,1750068647182,-745.71,0.00016438,2]
[366110596,1750068647192,-490.0,0.00016438,2]
[366110598,1750068647202,-490.0,0.00016438,2]
[366110600,1750068647212,-490.0,0.00016438,2]
[366110603,1750068647224,-1614.85,0.00016438,2]
[366110605,1750068647234,-500.0,0.00016438,2]
[366110607,1750068647244,-500.0,0.00016438,2]
[366110609,1750068647255,-490.0,0.00016438,2]
[366110611,1750068647266,-490.0,0.00016438,2]
[366110614,1750068647288,-490.0,0.00016438,2]
[366110616,1750068647301,-3145.35,0.00016438,2]
[366110618,1750068647312,-490.0,0.00016438,2]
[366110620,1750068647322,-1116.46,0.00016438,2]
[366110623,1750068647334,-809.34,0.00016438,2]
[366110625,1750068647344,-994.38,0.00016438,2]
[366110627,1750068647354,-1965.11,0.00016438,2]
[366110629,1750068647365,-779.9,0.00016438,2]
[366110631,1750068647375,-1140.68,0.00016438,2]
[366110633,1750068647386,-490.0,0.00016438,2]
[366110635,1750068647397,-795.71,0.00016438,2]
[366110637,1750068647409,-2804.25,0.00016438,2]
[366110639,1750068647420,-3073.4,0.00016438,2]
[366110641,1750068647430,-1362.58,0.00016438,2]
[366110644,1750068647442,-754.64,0.00016438,2]
[366110646,1750068647452,-734.51,0.00016438,2]
[366110648,1750068647462,-1403.85,0.00016438,2]
[366110650,1750068647473,-491.05134449,0.00016438,2]
[366110651,1750068647483,-490.0,0.00016438,2]
[366110652,1750068647493,-359.130399,0.00016438,2]
[366110653,1750068647503,-1452.49,0.00016438,2]
[366110654,1750068647514,-766.3,0.00016438,2]
[366110655,1750068647524,-151.0,0.00016438,2]
[366110656,1750068647535,-917.23,0.00016438,2]
[366110657,1750068647545,-1140.11,0.00016438,2]
[366110658,1750068647555,-675.87,0.00016438,2]
[366110659,1750068647565,-359.130399,0.00016438,2]
[366110661,1750068647574,-587.82,0.00016438,2]
[366110663,1750068647585,-490.0,0.00016438,2]
[366110665,1750068647596,-2374.71,0.00016438,2]
[366110667,1750068647607,-1043.06,0.00016438,2]
[366110669,1750068647617,-526.64,0.00016438,2]
[366110671,1750068647627,-3395.14,0.00016438,2]
[366110674,1750068647638,-754.41,0.00016438,2]
[366110676,1750068647648,-1063.16,0.00016438,2]
[366110678,1750068647658,-490.0,0.00016438,2]
[366110680,1750068647672,-1030.21786472,0.00016448,2]
[366110682,1750068647683,-623.0,0.00016452,2]
[366110684,1750068647693,-720.42988017,0.00016452,2]
[366110686,1750068647703,-156.31236705,0.00016461,2]
[366110689,1750068647714,-2000.0,0.00016465,2]
[366110691,1750068647731,-2000.0,0.00016467,2]
[366110693,1750068647744,-500.0,0.00016467,2]
[366110695,1750068647755,-200.0,0.00016467,2]
[366110697,1750068647766,-2000.0,0.00016468,2]
[366110700,1750068647777,-500.0,0.00016468,2]
[366110702,1750068647788,-1000.0,0.00016491,2]
[366110704,1750068647798,-833.8156298,0.00016497,2]
[366110706,1750068647809,-175.28608274,0.00016498,2]
[366110708,1750068647820,-157.48677891,0.00016498,2]
[366110710,1750068647831,-999.204,0.00016499,2]
[366110712,1750068647841,-1030.21786472,0.00016502,2]
[366110715,1750068647852,-188.94,0.00016521,2]
[366110717,1750068647863,-151.0,0.00016522,2]
[366110719,1750068647874,-265.692797,0.00016522,2]
[366110721,1750068647885,-265.692797,0.00016522,2]
[366110723,1750068647896,-151.0,0.00016522,2]
[366110725,1750068647907,-151.0,0.00016522,2]
[366110727,1750068647917,-626.258482,0.00016522,2]
[366110730,1750068647928,-626.258482,0.00016522,2]
[366110732,1750068647938,-438.628682,0.00016522,2]
[366110734,1750068647949,-438.628682,0.00016522,2]
[366110736,1750068647960,-177.905353,0.00016522,2]
[366110738,1750068647971,-177.905353,0.00016522,2]
[366110740,1750068647981,-281.919183,0.00016522,2]
[366110742,1750068647991,-281.919183,0.00016522,2]
[366110744,1750068648002,-151.0,0.00016522,2]
[366110746,1750068648012,-151.0,0.00016522,2]
[366110749,1750068648024,-924.224335,0.00016522,2]
[366110751,1750068648036,-924.224335,0.00016522,2]
[366110753,1750068648047,-151.0,0.00016522,2]
[366110755,1750068648058,-151.0,0.00016522,2]
[366110757,1750068648069,-156.31236705,0.00016523,2]
[366110759,1750068648080,-1030.21786472,0.00016557,2]
[366110761,1750068648090,-151.0,0.00016569,2]
[366110763,1750068648101,-151.0,0.00016569,2]
[366110766,1750068648112,-1474.166357,0.00016569,2]
[366110768,1750068648123,-1474.166357,0.00016569,2]
[366110770,1750068648136,-151.0,0.00016569,2]
[366110772,1750068648147,-771.368373,0.00016576,2]
[366110774,1750068648159,-771.368373,0.00016576,2]
[366110777,1750068648170,-178.524345,0.00016576,2]
[366110779,1750068648181,-178.524345,0.00016576,2]
[366110781,1750068648192,-151.0,0.00016576,2]
[366110783,1750068648203,-151.0,0.00016576,2]
[366110785,1750068648214,-156.31236705,0.00016585,2]
[366110787,1750068648224,-151.0,0.00016588,2]
[366110789,1750068648235,-151.0,0.00016588,2]
[366110791,1750068648246,-151.0,0.00016588,2]
[366110793,1750068648257,-151.0,0.00016588,2]
[366110795,1750068648268,-1047.847195,0.00016588,2]
[366110798,1750068648278,-1047.847195,0.00016588,2]
[366110800,1750068648289,-151.0,0.00016588,2]
[366110802,1750068648300,-500.0,0.00016588,2]
[366110804,1750068648310,-171.3747989,0.00016588,2]
[366110806,1750068648321,-153.260645,0.00016589,2]
[366110808,1750068648332,-151.0,0.00016589,2]
[366110810,1750068648342,-151.0,0.00016589,2]
[366110812,1750068648353,-151.0,0.00016589,2]
[366110814,1750068648364,-151.0,0.00016589,2]
[366110816,1750068648374,-151.0,0.00016589,2]
[366110819,1750068648385,-433.20619,0.00016589,2]
[366110821,1750068648395,-433.20619,0.00016589,2]
[366110823,1750068648407,-151.0,0.00016589,2]
[366110825,1750068648418,-151.0,0.00016589,2]
[366110827,1750068648428,-151.0,0.00016589,2]
[366110829,1750068648440,-161.550075,0.00016589,2]
[366110831,1750068648452,-151.0,0.00016589,2]
[366110834,1750068648462,-151.0,0.00016589,2]
[366110836,1750068648473,-152.766728,0.00016589,2]
[366110838,1750068648483,-152.766728,0.00016589,2]
[366110840,1750068648494,-151.0,0.00016589,2]
[366110842,1750068648505,-170.620229,0.00016589,2]
[366110844,1750068648515,-170.620229,0.00016589,2]
[366110846,1750068648526,-395.062481,0.00016589,2]
[366110848,1750068648537,-395.062481,0.00016589,2]
[366110850,1750068648548,-151.0,0.00016589,2]
[366110852,1750068648560,-352.869109,0.00016589,2]
[366110854,1750068648572,-352.869109,0.00016589,2]
[366110856,1750068648583,-151.0,0.00016589,2]
[366110858,1750068648594,-621.035583,0.00016589,2]
[366110861,1750068648605,-621.035583,0.00016589,2]
[366110863,1750068648616,-151.0,0.00016589,2]
[366110865,1750068648627,-151.0,0.00016589,2]
[366110867,1750068648639,-151.0,0.00016589,2]
[366110869,1750068648650,-321.629011,0.00016589,2]
[366110871,1750068648661,-321.629011,0.00016589,2]
[366110873,1750068648675,-151.932172,0.00016589,2]
[366110876,1750068648685,-151.0,0.00016589,2]
[366110878,1750068648696,-151.0,0.00016589,2]
[366110880,1750068648707,-160.050184,0.00016589,2]
[366110882,1750068648717,-160.050184,0.00016589,2]
[366110884,1750068648728,-151.154166,0.00016589,2]
[366110886,1750068648739,-309.65892,0.00016589,2]
[366110888,1750068648751,-309.65892,0.00016589,2]
[366110890,1750068648762,-151.0,0.00016589,2]
[366110892,1750068648773,-151.0,0.00016589,2]
[366110894,1750068648784,-151.0,0.00016589,2]
[366110896,1750068648794,-194.139107,0.00016589,2]
[366110898,1750068648806,-186.430742,0.00016589,2]
[366110900,1750068648816,-186.430742,0.00016589,2]
[366110903,1750068648826,-151.0,0.00016589,2]
[366110905,1750068648837,-151.0,0.00016589,2]
[366110907,1750068648847,-151.0,0.00016589,2]
[366110909,1750068648857,-864.783927,0.00016589,2]
[366110911,1750068648868,-864.783927,0.00016589,2]
[366110913,1750068648878,-72488.8706666,0.00016589,2]
[366110915,1750068648889,-151.0,0.00016589,2]
[366110917,1750068648900,-27698.1283985,0.00016589,2]
[366110919,1750068648909,-151.0,0.00016589,2]
[366110921,1750068648920,-7992.2698471,0.00016589,2]
[366110923,1750068648930,-151.0,0.00016589,2]
[366110925,1750068648940,-152.487399,0.00016589,2]
[366110927,1750068648950,-364.814444,0.00016589,2]
[366110929,1750068648960,-364.814444,0.00016589,2]
[366110931,1750068648970,-168.481778,0.00016589,2]
[366110934,1750068648980,-151.0,0.00016589,2]
[366110936,1750068648990,-151.0,0.00016589,2]
[366110938,1750068649000,-151.0,0.00016589,2]
[366110940,1750068649010,-804.365865,0.00016589,2]
[366110942,1750068649020,-804.365865,0.00016589,2]
[366110944,1750068649030,-359.130399,0.00016589,2]
[366110946,1750068649041,-157.606675,0.00016589,2]
[366110948,1750068649052,-359.130399,0.00016589,2]
[366110950,1750068649062,-146515.44643931,0.00016596,2]
[366110952,1750068649072,-151.0,0.00016596,2]
[366110954,1750068649083,-151.0,0.00016596,2]
[366110956,1750068649093,-151.0,0.00016596,2]
[366110958,1750068649104,-401.199273,0.00016596,2]
[366110960,1750068649114,-401.199273,0.00016596,2]
[366110962,1750068649124,-1346.323856,0.00016596,2]
[366110964,1750068649135,-1346.323856,0.00016596,2]
[366110966,1750068649145,-309.65892,0.00016596,2]
[366110968,1750068649155,-309.65892,0.00016596,2]
[366110970,1750068649167,-151.0,0.00016596,2]
[366110972,1750068649177,-216.827888,0.00016596,2]
[366110974,1750068649188,-151.0,0.00016596,2]
[366110976,1750068649198,-386.781064,0.00016596,2]
[366110978,1750068649208,-151.0,0.00016596,2]
[366110981,1750068649219,-386.781064,0.00016596,2]
[366110983,1750068649229,-169.02903,0.00016596,2]
[366110985,1750068649239,-217.623931,0.00016596,2]
[366111024,1750068649714,-151.0,0.00016596,2]
[366111025,1750068649725,-217.623931,0.00016596,2]
[366111026,1750068649736,-151.0,0.00016596,2]
[366111028,1750068649748,-186.430742,0.00016596,2]
[366111030,1750068649758,-186.430742,0.00016596,2]
[366111032,1750068649769,-151.0,0.00016596,2]
[366111034,1750068649779,-151.0,0.00016596,2]
[366111037,1750068649794,-626.560949,0.00016596,2]
[366111039,1750068649804,-626.560949,0.00016596,2]
[366111041,1750068649813,-151.0,0.00016596,2]
[366111043,1750068649824,-265.692797,0.00016596,2]
[366111045,1750068649834,-265.692797,0.00016596,2]
[366111047,1750068649844,-151.0,0.00016596,2]
[366111049,1750068649854,-153.39334,0.00016596,2]
[366111051,1750068649864,-151.0,0.00016596,2]
[366111053,1750068649875,-151.0,0.00016596,2]
[366111055,1750068649885,-1047.847195,0.00016596,2]
[366111057,1750068649895,-1047.847195,0.00016596,2]
[366111059,1750068649905,-626.258482,0.00016596,2]
[366111061,1750068649915,-626.258482,0.00016596,2]
[366111063,1750068649925,-1474.166357,0.00016596,2]
[366111065,1750068649935,-1474.166357,0.00016596,2]
[366111067,1750068649944,-438.628682,0.00016596,2]
[366111070,1750068649954,-438.628682,0.00016596,2]
[366111072,1750068649964,-177.905353,0.00016596,2]
[366111074,1750068649974,-177.905353,0.00016596,2]
[366111076,1750068649984,-151.0,0.00016596,2]
[366111078,1750068649995,-151.0,0.00016596,2]
[366111080,1750068650005,-151.0,0.00016596,2]
[366111082,1750068650014,-151.0,0.00016596,2]
[366111084,1750068650024,-151.0,0.00016596,2]
[366111086,1750068650033,-250.572244,0.00016596,2]
[366111088,1750068650044,-151.0,0.00016596,2]
[366111090,1750068650054,-281.919183,0.00016596,2]
[366111092,1750068650064,-281.919183,0.00016596,2]
[366111094,1750068650075,-151.0,0.00016596,2]
[366111096,1750068650085,-151.0,0.00016596,2]
[366111098,1750068650095,-152.39189,0.00016596,2]
[366111100,1750068650105,-924.224335,0.00016596,2]
[366111102,1750068650114,-924.224335,0.00016596,2]
[366111104,1750068650124,-151.0,0.00016596,2]
[366111107,1750068650135,-151.0,0.00016596,2]
[366111109,1750068650145,-151.0,0.00016596,2]
[366111111,1750068650155,-804.365865,0.00016596,2]
[366111113,1750068650165,-804.365865,0.00016596,2]
[366111115,1750068650175,-151.0,0.00016596,2]
[366111117,1750068650185,-151.0,0.00016596,2]
[366111119,1750068650195,-359.130399,0.00016596,2]
[366111121,1750068650205,-359.130399,0.00016596,2]
[366111123,1750068650215,-151.0,0.00016597,2]
[366111125,1750068650225,-170.620229,0.00016597,2]
[366111127,1750068650235,-170.620229,0.00016597,2]
[366111129,1750068650246,-621.035583,0.00016597,2]
[366111131,1750068650255,-621.035583,0.00016597,2]
[366111133,1750068650266,-151.0,0.00016597,2]
[366111135,1750068650276,-160.050184,0.00016597,2]
[366111137,1750068650286,-160.050184,0.00016597,2]
[366111139,1750068650297,-328264.66343427,0.00016598,2]
[366111197,1750068650849,-5354.0,0.00016598,2]
[366111201,1750068650878,-3855.78589031,0.00016598,2]
[366111276,1750068651706,-490.0,0.00016438,2]
[366111279,1750068651717,-441.93212403,0.00016598,2]
[366111281,1750068651730,-14301.66968569,0.00016598,2]
[366111285,1750068651764,-3161.10219568,0.00016598,2]
[366111296,1750068651865,-11990.98484504,0.00016598,2]
[366111315,1750068652040,-10147.39683886,0.00016598,2]
[366111368,1750068652568,-515.38,0.00016438,2]
[366111370,1750068652578,-2490.51062177,0.00016598,2]
[366111374,1750068652614,-440.905992,0.00016598,2]
[366111548,1750068753446,500.0,0.00015416,2]
[366111550,1750068820425,156.89,0.00013699,2]
[366111552,1750068851859,2751.0,0.00015411,2]
[366111553,1750068871211,212.09184217,0.00015,2]
[366111554,1750068888296,167.76,0.00015396,2]
[366111555,1750068888340,661.95,0.00015432,2]
[366111557,1750068979628,443.22,0.00015432,2]
[366111559,1750069077818,208.04,0.00015394,2]
[366111561,1750069305907,799.29367852,0.00024658,120]
[366111562,1750069331928,500.0,0.00015392,2]
[366111563,1750069442118,466.67,0.00015385,2]
[366111564,1750069543903,1000.0,0.00015376,2]
[366111565,1750069553970,794.0,0.0002465,120]
[366111566,1750069572030,204.0,0.0001469,2]
[366111568,1750069661632,203.0,0.0001469,2]
[366111569,1750069681216,598.16,0.00015394,2]
[366111576,1750069723443,8054.109999,0.000151,2]
[366111614,1750069836894,-600.0,0.00015541,4]
[366111615,1750069836905,-300.0,0.00015578,2]
[366111616,1750069836915,-250.0,0.00015616,2]
[366111617,1750069836925,-221.48173817,0.00016164,2]
[366111618,1750069836937,-378.51826183,0.00016164,2]
[366111619,1750069836948,-692.729072,0.00016238,2]
[366111620,1750069836958,-204.0,0.00016253,4]
[366111621,1750069836968,-779.16434,0.00016266,2]
[366111622,1750069836977,-150.0,0.00016288,2]
[366111623,1750069836987,-150.0,0.00016296,2]
[366111630,1750069837384,-150.0,0.00016297,2]
[366111631,1750069837394,-150.0,0.00016304,2]
[366111632,1750069837404,-150.0,0.00016306,2]
[366111633,1750069837414,-152.0,0.00016307,3]
[366111634,1750069837426,-150.0,0.00016309,2]
[366111635,1750069837443,-150.0,0.00016311,2]
[366111636,1750069837454,-300.0,0.00016311,2]
[366111637,1750069837465,-1200.0,0.00016311,2]
[366111638,1750069837475,-150.0,0.00016312,2]
[366111639,1750069837486,-300.0,0.00016312,2]
[366111640,1750069837496,-150.0,0.0001632,2]
[366111641,1750069837506,-207.4,0.00016321,2]
[366111642,1750069837518,-2827.41000144,0.00016321,2]
[366111643,1750069837528,-151.54616944,0.00016321,2]
[366111644,1750069837539,-500.0,0.00016321,2]
[366111645,1750069837552,-500.0,0.00016321,2]
[366111646,1750069837562,-500.0,0.00016321,2]
[366111647,1750069837574,-500.0,0.00016321,2]
[366111648,1750069837584,-210.03042739,0.00016321,2]
[366111649,1750069837599,-289.96957261,0.00016321,2]
[366111650,1750069837611,-500.0,0.00016321,2]
[366111651,1750069837620,-553.5677161,0.00016321,2]
[366111652,1750069837631,-151.0,0.00016321,2]
[366111653,1750069837641,-151.0,0.00016321,2]
[366111654,1750069837651,-151.0,0.00016321,2]
[366111655,1750069837661,-150.0,0.00016328,2]
[366111656,1750069837672,-150.0,0.00016329,2]
[366111657,1750069837682,-500.0,0.0001633,2]
[366111658,1750069837692,-321.47784012,0.0001633,2]
[366111659,1750069837703,-366.3863196,0.0001633,2]
[366111660,1750069837713,-500.0,0.0001633,2]
[366111661,1750069837723,-500.0,0.0001633,2]
[366111662,1750069837733,-150.99,0.00016331,2]
[366111663,1750069837744,-8734.11,0.00016331,2]
[366111664,1750069837755,-150.99,0.00016331,2]
[366111665,1750069837765,-999.99,0.00016331,2]
[366111666,1750069837776,-9999.99,0.00016331,2]
[366111667,1750069837787,-8663.64,0.00016331,2]
[366111668,1750069837798,-9999.99,0.00016331,2]
[366111669,1750069837808,-150.0,0.00016331,2]
[366111670,1750069837818,-150.0,0.00016336,2]
[366111671,1750069837829,-150.0,0.00016338,2]
[366111672,1750069837840,-156.31236705,0.00016338,2]
[366111673,1750069837850,-174.88821441,0.00016338,2]
[366111674,1750069837860,-500.0,0.00016338,2]
[366111675,1750069837876,-1000.0,0.00016338,2]
[366111676,1750069837887,-1000.0,0.00016338,2]
[366111677,1750069837898,-1286.0057,0.00016338,2]
[366111678,1750069837908,-5000.0,0.00016338,2]
[366111679,1750069837919,-2418.7367,0.00016338,2]
[366111680,1750069837930,-150.0,0.00016342,2]
[366111681,1750069837941,-150.0,0.00016347,2]
[366111682,1750069837952,-150.0,0.00016354,2]
[366111683,1750069837962,-150.0,0.00016361,2]
[366111684,1750069837974,-150.0,0.00016364,2]
[366111685,1750069837985,-150.0,0.00016365,2]
[366111686,1750069837996,-150.0,0.00016368,2]
[366111687,1750069838006,-150.0,0.0001637,2]
[366111688,1750069838017,-150.0,0.00016371,2]
[366111689,1750069838027,-150.0,0.00016371,2]
[366111690,1750069838043,-1000.0,0.00016379,2]
[366111691,1750069838053,-150.0,0.00016381,2]
[366111692,1750069838064,-150.0,0.00016388,2]
[366111693,1750069838075,-150.0,0.00016389,2]
[366111694,1750069838085,-150.0,0.0001639,2]
[366111695,1750069838096,-150.0,0.00016392,2]
[366111696,1750069838107,-150.0,0.00016393,2]
[366111697,1750069838119,-150.0,0.00016394,2]
[366111698,1750069838129,-150.0,0.00016399,2]
[366111699,1750069838139,-12049.27511275,0.000164,2]
[366111700,1750069838181,-20590.01,0.000164,2]
[366111701,1750069838204,-7132.73980422,0.000164,2]
[366111702,1750069838218,-3195.37633303,0.000164,2]
[366111703,1750069838232,-3529.05961605,0.000164,2]
[366111704,1750069838245,-1081.17104548,0.000164,2]
[366111705,1750069838257,-7977.36808847,0.000164,2]
[366111706,1750069838268,-3228.40511058,0.000164,2]
[366111707,1750069838285,-7130.7742699,0.000164,2]
[366111715,1750069838715,-592.32331762,0.000164,2]
[366111722,1750069838777,-1611.6669,0.000164,2]
[366111896,1750069840582,-28603.62420203,0.000164,2]
[366111903,1750069840641,-3332.64393987,0.000164,2]
[366111925,1750069840852,-1869.36968375,0.000164,3]
[366111927,1750069840863,-48015.92142498,0.000164,2]
[366111929,1750069840873,-150.0,0.00016401,2]
[366111931,1750069840882,-150.0,0.00016403,2]
[366111933,1750069840891,-150.0,0.00016411,2]
[366111935,1750069840901,-150.0,0.00016419,2]
[366111937,1750069840910,-156.31236705,0.0001642,2]
[366111939,1750069840919,-150.0,0.00016422,2]
[366111941,1750069840929,-150.0,0.00016424,2]
[366111943,1750069840938,-150.0,0.00016425,2]
[366111945,1750069840947,-150.0,0.00016426,2]
[366111947,1750069840957,-150.0,0.00016429,2]
[366111949,1750069840966,-150.0,0.0001643,2]
[366111951,1750069840975,-321.46724891,0.00016437,2]
[366111953,1750069840984,-174.86369786,0.00016437,2]
[366111955,1750069840994,-1039.294323,0.00016438,2]
[366111957,1750069841003,-151.0,0.00016438,2]
[366111959,1750069841012,-1039.294323,0.00016438,2]
[366111961,1750069841022,-151.0,0.00016438,2]
[366111963,1750069841033,-212.203573,0.00016438,2]
[366111965,1750069841043,-212.203573,0.00016438,2]
[366111967,1750069841053,-151.0,0.00016438,2]
[366111969,1750069841063,-151.0,0.00016438,2]
[366111971,1750069841074,-151.0,0.00016438,2]
[366111973,1750069841083,-329.564456,0.00016438,2]
[366111975,1750069841093,-329.564456,0.00016438,2]
[366111978,1750069841103,-217.900123,0.00016438,2]
[366111980,1750069841113,-217.900123,0.00016438,2]
[366111982,1750069841123,-153.260645,0.00016438,2]
[366111984,1750069841133,-369.906748,0.00016438,2]
[366111986,1750069841142,-500.0,0.00016438,2]
[366111988,1750069841151,-293.46344561,0.00016438,2]
[366111989,1750069841160,-500.0,0.00016438,2]
[366111992,1750069841169,-500.0,0.00016438,2]
[366111994,1750069841179,-151.0,0.00016438,2]
[366111996,1750069841188,-369.906748,0.00016438,2]
[366111998,1750069841202,-151.178491,0.00016438,2]
[366112000,1750069841211,-2078.035046,0.00016438,2]
[366112002,1750069841220,-2959.267283,0.00016438,2]
[366112004,1750069841230,-490.0,0.00016438,2]
[366112006,1750069841239,-490.0,0.00016438,2]
[366112008,1750069841249,-630.14,0.00016438,2]
[366112010,1750069841258,-490.0,0.00016438,2]
[366112012,1750069841267,-490.0,0.00016438,2]
[366112014,1750069841276,-1145.94,0.00016438,2]
[366112016,1750069841285,-250.0,0.00016438,2]
[366112018,1750069841295,-490.0,0.00016438,2]
[366112020,1750069841304,-490.0,0.00016438,2]
[366112021,1750069841313,-490.0,0.00016438,2]
[366112023,1750069841322,-490.0,0.00016438,2]
[366112025,1750069841330,-151.0,0.00016438,2]
[366112027,1750069841339,-639.1,0.00016438,2]
[366112029,1750069841349,-490.0,0.00016438,2]
[366112031,1750069841360,-490.0,0.00016438,2]
[366112033,1750069841369,-490.0,0.00016438,2]
[366112036,1750069841379,-490.0,0.00016438,2]
[366112038,1750069841390,-490.0,0.00016438,2]
[366112040,1750069841400,-490.0,0.00016438,2]
[366112042,1750069841409,-490.0,0.00016438,2]
[366112044,1750069841418,-490.0,0.00016438,2]
[366112046,1750069841429,-490.0,0.00016438,2]
[366112048,1750069841439,-575.01,0.00016438,2]
[366112050,1750069841448,-490.0,0.00016438,2]
[366112052,1750069841458,-490.0,0.00016438,2]
[366112054,1750069841469,-490.0,0.00016438,2]
[366112056,1750069841478,-500.15395209,0.00016438,2]
[366112058,1750069841487,-490.0,0.00016438,2]
[366112060,1750069841496,-490.0,0.00016438,2]
[366112062,1750069841505,-490.0,0.00016438,2]
[366112064,1750069841515,-495.68,0.00016438,2]
[366112066,1750069841524,-534.62,0.00016438,2]
[366112068,1750069841533,-490.0,0.00016438,2]
[366112070,1750069841542,-490.0,0.00016438,2]
[366112072,1750069841551,-151.0,0.00016438,2]
[366112074,1750069841560,-490.0,0.00016438,2]
[366112076,1750069841569,-490.0,0.00016438,2]
[366112078,1750069841578,-490.0,0.00016438,2]
[366112080,1750069841588,-151.0,0.00016438,2]
[366112082,1750069841597,-490.0,0.00016438,2]
[366112084,1750069841611,-490.0,0.00016438,2]
[366112086,1750069841620,-490.0,0.00016438,2]
[366112088,1750069841630,-490.0,0.00016438,2]
[366112090,1750069841639,-491.61,0.00016438,2]